bitfinex-derivatives/quotes_SOLF0:USTF0_20241101
["timestamp","ask_amount","ask_price","bid_price","bid_amount"]
[1730455320818,1.46829431,167.14,167.11,9.22576763]
[1730455321021,1.46829431,167.14,167.12,2.64]
[1730455322710,1.46829431,167.14,167.12,11.86576763]
[1730455322916,1.46829431,167.14,167.12,14.86006763]
[1730455323411,1.46829431,167.14,167.13,12.21996763]
[1730455323814,1.46829431,167.14,167.13,9.22576763]
[1730455324213,1.46829431,167.14,167.13,12.21996763]
[1730455328447,1.46829431,167.14,167.13,9.22576763]
[1730455334541,1.46829431,167.14,167.13,11.86576763]
[1730455334848,1.46829431,167.14,167.12,9.22576763]
[1730455335041,10.69406194,167.14,167.08,9.22576763]
[1730455335246,9.22576763,167.11,167.07,9.22576763]
[1730455335937,1.46829431,167.14,167.06,9.22576763]
[1730455335938,9.22576763,167.1,167.06,9.22576763]
[1730455336146,2.6503,167.09,167.05,9.22576763]
[1730455336855,11.87606763,167.09,167.04,9.22576763]
[1730455337843,2.9951,167.08,167.04,9.22576763]
[1730455338460,2.9951,167.08,167.05,9.22576763]
[1730455338645,11.87606763,167.09,167.05,9.22576763]
[1730455338846,2.9951,167.08,167.05,9.22576763]
[1730455339352,14.87096763,167.09,167.05,9.22576763]
[1730455342055,11.87606763,167.09,167.05,9.22576763]
[1730455343861,14.87096763,167.09,167.05,9.22576763]
[1730455345265,11.87606763,167.09,167.05,9.22576763]
[1730455345565,2.6503,167.09,167.05,9.22576763]
[1730455345763,2.6503,167.09,167.06,9.22576763]
[1730455348064,2.6503,167.09,167.06,12.22106763]
[1730455348362,2.6503,167.09,167.05,9.22576763]
[1730455348759,14.87096763,167.09,167.04,12.22156763]
[1730455349559,14.87096763,167.09,167.04,9.22576763]
[1730455349953,12.22116763,167.07,167.04,9.22576763]
[1730455350150,12.22116763,167.07,167.02,9.22576763]
[1730455350753,9.22576763,167.09,167.05,9.22576763]
[1730455350958,12.22076763,167.09,167.05,9.22576763]
[1730455351562,2.995,167.09,167.05,9.22576763]
[1730455352960,2.9954,167.06,167.03,9.22576763]
[1730455353165,9.22576763,167.07,167.03,9.22576763]
[1730455353765,2.9953,167.07,167.03,12.22176763]
[1730455354958,9.22576763,167.07,167.03,9.22576763]
[1730455355172,2.64,167.09,167.01,11.86576763]
[1730455355173,9.22576763,167.06,167.01,11.86576763]
[1730455355360,9.22576763,167.06,167.01,9.22576763]
[1730455356370,9.22576763,167.07,167.03,9.22576763]
[1730455357268,2.9955,167.06,167.03,9.22576763]
[1730455358971,2.9953,167.07,167.04,9.22576763]
[1730455359570,2.64,167.09,167.05,12.22136763]
[1730455359773,2.64,167.09,167.05,9.22576763]
[1730455360070,2.9949,167.09,167.05,12.22136763]
[1730455361855,11.80986763,167.11,167.07,9.22576763]
[1730455363474,2.9948,167.1,167.07,9.22576763]
[1730455364758,2.9948,167.1,167.06,12.22106763]
[1730455369273,12.75172002,167.17,167.09,9.22576763]
[1730455369477,6.15635239,167.17,167.12,9.22576763]
[1730455369780,6.15635239,167.17,167.13,9.22576763]
[1730455370173,6.15635239,167.17,167.13,12.21996763]
[1730455370679,3.52595239,167.17,167.13,12.21996763]
[1730455380282,3.52595239,167.17,167.13,9.22576763]
[1730455380479,6.51945239,167.17,167.13,9.22576763]
[1730455381188,3.52595239,167.17,167.13,9.22576763]
[1730455381691,3.52595239,167.17,167.13,12.21996763]
[1730455381978,3.52595239,167.17,167.13,9.22576763]
[1730455382184,3.52595239,167.17,167.16,9.22576763]
[1730455382386,3.52595239,167.17,167.16,11.88576763]
[1730455382576,3.52595239,167.17,167.16,14.87936763]
[1730455385079,3.52595239,167.17,167.16,11.88576763]
[1730455386787,3.52595239,167.17,167.16,14.87936763]
[1730455386971,7.04270029,167.18,167.16,11.88576763]
[1730455387285,3.57488466,167.19,167.16,11.88576763]
[1730455387472,3.57488466,167.19,167.18,9.22576763]
[1730455388290,3.57488466,167.19,167.18,12.21906763]
[1730455398591,3.57488466,167.19,167.18,9.22576763]
[1730455400489,3.57488466,167.19,167.18,12.21906763]
[1730455401085,6.79478229,167.2,167.19,2.9931]
[1730455406788,6.79478229,167.2,167.18,12.21896763]
[1730455406991,6.79478229,167.2,167.18,9.22576763]
[1730455407188,6.79478229,167.2,167.18,11.88576763]
[1730455415405,6.79478229,167.2,167.18,9.22576763]
[1730455418698,2.9935,167.17,167.16,9.22576763]
[1730455418905,6.79478229,167.2,167.12,2.68]
[1730455419206,6.79478229,167.2,167.16,9.22576763]
[1730455419401,2.9935,167.17,167.16,9.22576763]
[1730455419610,6.79478229,167.2,167.16,7.14396763]
[1730455420003,2.9934,167.18,167.16,7.14396763]
[1730455422014,2.9932,167.19,167.16,7.14396763]
[1730455422513,6.79478229,167.2,167.17,9.22576763]
[1730455422814,9.78788229,167.2,167.17,9.22576763]
[1730455423115,6.79478229,167.2,167.17,9.22576763]
[1730455423619,2.9932,167.19,167.17,9.22576763]
[1730455424316,2.9932,167.19,167.16,9.22576763]
[1730455425513,6.79478229,167.2,167.18,9.22576763]
[1730455426118,6.79478229,167.2,167.19,9.22576763]
[1730455428907,6.79478229,167.2,167.19,12.21886763]
[1730455431618,2.98952835,167.21,167.2,2.9929]
[1730455431821,2.98952835,167.21,167.19,9.22576763]
[1730455434211,2.98952835,167.21,167.2,2.9929]
[1730455435322,3.65583493,167.23,167.19,9.22576763]
[1730455435518,3.65583493,167.23,167.22,9.22576763]
[1730455435721,3.65583493,167.23,167.22,11.90576763]
[1730455435920,3.65583493,167.23,167.22,14.89836763]
[1730455439419,3.65583493,167.23,167.22,11.90576763]
[1730455440922,3.65583493,167.23,167.22,14.89836763]
[1730455442922,3.65583493,167.23,167.22,11.90576763]
[1730455445329,2.9913,167.3,167.24,2.9922]
[1730455445513,2.9913,167.3,167.27,9.22576763]
[1730455446928,2.9914,167.29,167.27,9.22576763]
[1730455449036,2.5255,167.31,167.26,9.22576763]
[1730455449037,11.75126763,167.31,167.26,9.22576763]
[1730455449326,2.9915,167.28,167.26,9.22576763]
[1730455450513,9.22576763,167.31,167.26,9.22576763]
[1730455450731,2.9916,167.28,167.27,9.22576763]
[1730455451125,9.22576763,167.31,167.27,9.22576763]
[1730455451836,2.9915,167.28,167.27,9.22576763]
[1730455452923,2.9913,167.3,167.25,9.22576763]
[1730455453124,9.22576763,167.31,167.25,9.22576763]
[1730455453339,9.22576763,167.31,167.26,9.22576763]
[1730455454228,2.9914,167.29,167.26,9.22576763]
[1730455454429,9.22576763,167.31,167.26,9.22576763]
[1730455454629,9.22576763,167.31,167.26,12.21756763]
[1730455455523,2.9907,167.33,167.3,9.22576763]
[1730455455728,1.3787,167.34,167.32,9.22576763]
[1730455456334,9.22576763,167.36,167.32,9.22576763]
[1730455456524,9.22576763,167.37,167.33,9.22576763]
[1730455457229,2.9902,167.36,167.33,9.22576763]
[1730455457534,10.47796763,167.39,167.34,9.22576763]
[1730455458238,2.99,167.37,167.34,9.22576763]
[1730455460422,2.99,167.37,167.33,2.9905]
[1730455460423,9.22576763,167.38,167.33,9.22576763]
[1730455460619,10.54146763,167.38,167.33,9.22576763]
[1730455461030,9.22576763,167.36,167.27,51.22499403]
[1730455461235,1.3594,167.35,167.3,9.22576763]
[1730455461419,10.58516763,167.35,167.3,9.22576763]
[1730455461626,2.991,167.31,167.3,9.22576763]
[1730455462135,2.9912,167.3,167.29,9.22576763]
[1730455462736,2.991,167.31,167.29,9.22576763]
[1730455463036,2.991,167.31,167.3,9.22576763]
[1730455463337,2.9905,167.34,167.3,9.22576763]
[1730455463540,2.9905,167.34,167.33,9.22576763]
[1730455464438,1.3594,167.35,167.33,9.22576763]
[1730455464643,4.3498,167.35,167.33,9.22576763]
[1730455465639,2.9904,167.34,167.33,9.22576763]
[1730455467534,1.3594,167.35,167.33,9.22576763]
[1730455468036,2.9904,167.34,167.33,9.22576763]
[1730455470648,2.9904,167.34,167.31,9.22576763]
[1730455470831,1.3594,167.35,167.31,9.22576763]
[1730455471843,2.9907,167.33,167.31,9.22576763]
[1730455473146,4.3497,167.35,167.32,9.22576763]
[1730455473346,1.3594,167.35,167.32,9.22576763]
[1730455474144,2.9906,167.33,167.31,9.22576763]
[1730455474451,1.3594,167.35,167.31,9.22576763]
[1730455474664,10.58516763,167.35,167.3,9.22576763]
[1730455474838,2.9909,167.32,167.3,9.22576763]
[1730455475038,2.9909,167.32,167.31,9.22576763]
[1730455475344,1.3594,167.35,167.31,9.22576763]
[1730455475652,2.9907,167.33,167.31,9.22576763]
[1730455476049,2.9907,167.33,167.32,9.22576763]
[1730455476351,2.9906,167.33,167.32,9.22576763]
[1730455478643,10.60166763,167.37,167.32,9.22576763]
[1730455478845,2.9904,167.35,167.32,9.22576763]
[1730455479041,1.3759,167.37,167.32,9.22576763]
[1730455479250,1.3759,167.37,167.34,9.22576763]
[1730455479445,2.9902,167.36,167.34,9.22576763]
[1730455480448,2.9902,167.35,167.34,9.22576763]
[1730455481142,2.99,167.37,167.34,9.22576763]
[1730455481451,2.99,167.37,167.36,9.22576763]
[1730455481950,2.5933,167.38,167.34,9.22576763]
[1730455483252,2.9899,167.37,167.34,9.22576763]
[1730455483447,2.5933,167.38,167.34,9.22576763]
[1730455484055,2.9902,167.36,167.34,9.22576763]
[1730455484255,11.81906763,167.38,167.33,9.22576763]
[1730455484451,1.3699,167.37,167.33,9.22576763]
[1730455485363,2.9904,167.34,167.33,9.22576763]
[1730455487456,2.9909,167.32,167.31,9.22576763]
[1730455488557,2.9907,167.33,167.31,9.22576763]
[1730455489457,9.22576763,167.36,167.31,9.22576763]
[1730455489762,2.9906,167.33,167.31,9.22576763]
[1730455491363,9.22576763,167.36,167.31,9.22576763]
[1730455491549,1.3699,167.37,167.28,2.78]
[1730455491550,2.9908,167.33,167.3,9.22576763]
[1730455493357,2.9908,167.33,167.31,9.22576763]
[1730455496164,1.3699,167.37,167.31,9.22576763]
[1730455496360,1.3699,167.37,167.33,9.22576763]
[1730455496864,2.9904,167.35,167.33,9.22576763]
[1730455497361,2.9904,167.34,167.33,9.22576763]
[1730455498068,1.3699,167.37,167.31,9.22576763]
[1730455498255,2.9907,167.33,167.31,9.22576763]
[1730455498963,9.22576763,167.36,167.31,9.22576763]
[1730455499167,2.9908,167.32,167.3,9.22576763]
[1730455499761,2.9908,167.32,167.31,9.22576763]
[1730455500371,2.9906,167.33,167.31,9.22576763]
[1730455500556,1.3699,167.37,167.32,9.22576763]
[1730455500954,2.9905,167.34,167.32,9.22576763]
[1730455501173,9.22576763,167.36,167.31,9.22576763]
[1730455501466,2.9909,167.32,167.31,9.22576763]
[1730455502773,2.991,167.31,167.29,9.22576763]
[1730455503159,9.22576763,167.35,167.29,9.22576763]
[1730455503357,2.9907,167.33,167.3,12.21686763]
[1730455505465,9.22576763,167.35,167.3,9.22576763]
[1730455505776,9.22576763,167.35,167.28,2.78]
[1730455505777,9.22576763,167.35,167.29,9.22576763]
[1730455505978,9.22576763,167.33,167.28,9.22576763]
[1730455506870,2.9909,167.32,167.28,9.22576763]
[1730455507175,9.22576763,167.33,167.28,9.22576763]
[1730455507472,9.22576763,167.34,167.29,9.22576763]
[1730455508367,2.991,167.31,167.29,9.22576763]
[1730455508765,2.991,167.31,167.28,9.22576763]
[1730455509777,2.9913,167.29,167.28,9.22576763]
[1730455510764,2.9912,167.3,167.28,9.22576763]
[1730455511469,2.9909,167.32,167.29,9.22576763]
[1730455511777,9.22576763,167.34,167.29,9.22576763]
[1730455512375,2.9911,167.31,167.29,9.22576763]
[1730455514975,2.9905,167.34,167.3,2.9911]
[1730455515179,2.9905,167.34,167.31,9.22576763]
[1730455515877,9.22576763,167.36,167.31,9.22576763]
[1730455516086,2.9906,167.33,167.31,9.22576763]
[1730455516406,2.9906,167.33,167.3,9.22576763]
[1730455516895,2.9908,167.32,167.3,9.22576763]
[1730455528100,9.22576763,167.35,167.28,9.22576763]
[1730455528300,2.9912,167.3,167.28,9.22576763]
[1730455528697,2.9909,167.32,167.28,9.22576763]
[1730455528899,9.22576763,167.33,167.28,9.22576763]
[1730455529402,2.9913,167.3,167.28,9.22576763]
[1730455532297,9.22576763,167.33,167.28,9.22576763]
[1730455532599,2.9913,167.29,167.27,12.00576763]
[1730455532800,2.9913,167.29,167.27,9.22576763]
[1730455533604,8.98587941,167.34,167.27,9.22576763]
[1730455533605,2.9915,167.28,167.27,9.22576763]
[1730455534599,9.22576763,167.3,167.25,9.22576763]
[1730455534803,2.9919,167.26,167.24,9.22576763]
[1730455537306,2.992,167.25,167.24,9.22576763]
[1730455537507,9.22576763,167.26,167.21,9.22576763]
[1730455538110,2.9921,167.25,167.21,9.22576763]
[1730455538306,9.22576763,167.26,167.21,9.22576763]
[1730455538817,2.9926,167.22,167.2,9.22576763]
[1730455539409,2.9926,167.22,167.19,11.96576763]
[1730455541722,2.9926,167.22,167.19,9.22576763]
[1730455542708,12.21816763,167.23,167.19,9.22576763]
[1730455543823,2.9936,167.17,167.14,9.22576763]
[1730455544118,9.22576763,167.19,167.12,9.22576763]
[1730455544426,2.9936,167.17,167.12,12.21996763]
[1730455545016,2.9936,167.17,167.13,2.9942]
[1730455551421,9.22576763,167.21,167.15,9.22576763]
[1730455551734,11.96576763,167.21,167.15,9.22576763]
[1730455551933,2.9933,167.19,167.15,12.21956763]
[1730455552618,2.9933,167.18,167.15,12.21956763]
[1730455552825,2.9933,167.18,167.14,12.21956763]
[1730455553233,2.9933,167.18,167.14,9.22576763]
[1730455554026,2.9933,167.18,167.13,9.22576763]
[1730455554727,2.9933,167.18,167.14,2.9939]
[1730455555827,2.9939,167.15,167.11,2.9945]
[1730455559535,2.9939,167.15,167.1,12.22046763]
[1730455560146,9.22576763,167.17,167.13,9.22576763]
[1730455560336,2.9937,167.16,167.13,9.22576763]
[1730455560535,9.22576763,167.17,167.13,9.22576763]
[1730455561539,2.9937,167.16,167.13,12.21996763]
[1730455568451,2.9933,167.18,167.14,12.21956763]
[1730455568950,9.22576763,167.2,167.16,9.22576763]
[1730455569152,3.8916,167.22,167.17,9.22576763]
[1730455569348,12.04576763,167.24,167.19,9.22576763]
[1730455569551,2.9927,167.22,167.19,9.22576763]
[1730455569748,9.22576763,167.23,167.19,9.22576763]
[1730455569955,9.22576763,167.23,167.18,2.9931]
[1730455571349,2.9928,167.21,167.18,2.9931]
[1730455571853,2.9928,167.21,167.18,12.21886763]
[1730455573251,2.9928,167.21,167.18,9.22576763]
[1730455574255,9.22576763,167.23,167.18,9.22576763]
[1730455574561,9.22576763,167.22,167.17,9.22576763]
[1730455575058,2.9931,167.2,167.17,9.22576763]
[1730455577047,9.22576763,167.22,167.17,9.22576763]
[1730455577849,2.9931,167.19,167.17,9.22576763]
[1730455578659,9.22576763,167.2,167.14,9.22576763]
[1730455578851,9.22576763,167.18,167.14,9.22576763]
[1730455579654,9.22576763,167.18,167.13,9.22576763]
[1730455580250,2.9937,167.16,167.13,9.22576763]
[1730455580961,2.9937,167.16,167.14,9.22576763]
[1730455590272,2.9942,167.13,167.11,9.22576763]
[1730455590467,2.9942,167.13,167.1,9.22576763]
[1730455593876,9.22576763,167.15,167.1,9.22576763]
[1730455594071,2.9942,167.13,167.1,9.22576763]
[1730455597473,2.9941,167.14,167.1,9.22576763]
[1730455599472,2.9942,167.13,167.1,9.22576763]
[1730455602973,9.22576763,167.19,167.12,9.22576763]
[1730455603181,11.91606763,167.2,167.16,9.22576763]
[1730455603367,1.3516,167.2,167.17,9.22576763]
[1730455603564,12.21836763,167.22,167.18,12.21896763]
[1730455603769,12.21836763,167.22,167.18,9.22576763]
[1730455604675,2.9926,167.22,167.18,9.22576763]
[1730455606871,11.85626763,167.26,167.21,9.22576763]
[1730455607176,9.22576763,167.3,167.24,9.22576763]
[1730455607366,12.21726763,167.28,167.24,12.21796763]
[1730455607570,9.22576763,167.27,167.21,9.22576763]
[1730455607767,9.22576763,167.24,167.2,9.22576763]
[1730455609072,2.9925,167.23,167.2,9.22576763]
[1730455609269,9.22576763,167.24,167.2,9.22576763]
[1730455609477,2.7085,167.26,167.21,9.22576763]
[1730455609478,11.93426763,167.26,167.21,9.22576763]
[1730455610268,14.92626763,167.26,167.21,12.21846763]
[1730455610482,11.93426763,167.26,167.21,12.21846763]
[1730455610785,11.93426763,167.26,167.21,9.22576763]
[1730455611572,2.9922,167.24,167.2,12.21866763]
[1730455613474,9.22576763,167.25,167.19,11.98576763]
[1730455613676,2.7085,167.26,167.19,9.22576763]
[1730455613677,9.22576763,167.23,167.19,9.22576763]
[1730455614484,2.9927,167.22,167.19,9.22576763]
[1730455617084,9.22576763,167.22,167.17,9.22576763]
[1730455617987,2.993,167.2,167.17,9.22576763]
[1730455618375,2.993,167.2,167.17,12.21916763]
[1730455620379,2.9928,167.21,167.17,12.21916763]
[1730455625691,2.9916,167.28,167.23,2.9923]
[1730455625889,2.9916,167.28,167.25,9.22576763]
[1730455626394,2.9917,167.27,167.23,12.21806763]
[1730455626690,9.22576763,167.28,167.23,9.22576763]
[1730455627287,9.22576763,167.27,167.22,12.21816763]
[1730455628284,2.992,167.26,167.22,12.21816763]
[1730455629098,2.992,167.26,167.23,9.22576763]
[1730455632598,2.992,167.26,167.22,12.21816763]
[1730455633614,9.22576763,167.29,167.22,9.22576763]
[1730455633799,9.22576763,167.29,167.22,12.21826763]
[1730455634909,2.9919,167.26,167.23,9.22576763]
[1730455636807,9.22576763,167.27,167.22,9.22576763]
[1730455637211,2.9923,167.24,167.22,9.22576763]
[1730455637395,9.22576763,167.26,167.21,9.22576763]
[1730455638205,9.22576763,167.24,167.17,9.22576763]
[1730455639207,2.9929,167.21,167.17,12.21916763]
[1730455639502,9.22576763,167.24,167.17,9.22576763]
[1730455639902,2.9927,167.22,167.17,9.22576763]
[1730455640107,9.22576763,167.23,167.17,9.22576763]
[1730455640504,2.9928,167.21,167.18,9.22576763]
[1730455641094,2.9928,167.21,167.18,12.21896763]
[1730455643305,2.9928,167.21,167.18,9.22576763]
[1730455643503,9.22576763,167.24,167.18,9.22576763]
[1730455643809,2.9925,167.23,167.2,9.22576763]
[1730455646812,2.9925,167.23,167.19,2.993]
[1730455646996,2.9927,167.22,167.18,12.21896763]
[1730455652307,2.9925,167.23,167.19,2.993]
[1730455652507,9.22576763,167.24,167.18,9.22576763]
[1730455653115,2.9926,167.22,167.19,2.9931]
[1730455654515,2.9926,167.22,167.18,12.21896763]
[1730455655320,2.9925,167.23,167.19,2.993]
[1730455657812,9.22576763,167.24,167.18,9.22576763]
[1730455658111,2.9926,167.22,167.18,12.21896763]
[1730455658920,9.22576763,167.24,167.18,9.22576763]
[1730455659122,2.9923,167.24,167.2,12.21866763]
[1730455659522,9.22576763,167.24,167.18,9.22576763]
[1730455661226,2.9926,167.22,167.18,12.21896763]
[1730455665619,2.9926,167.22,167.19,2.9931]
[1730455666216,9.22576763,167.24,167.19,2.9931]
[1730455666426,12.21806763,167.24,167.19,2.9931]
[1730455666933,9.22576763,167.24,167.19,2.9931]
[1730455667117,2.9925,167.23,167.19,2.9931]
[1730455667318,2.9925,167.23,167.2,9.22576763]
[1730455668423,2.9925,167.23,167.13,2.95025109]
[1730455668424,2.992,167.26,167.22,12.21826763]
[1730455668624,9.22576763,167.28,167.22,9.22576763]
[1730455669628,46.89882702,167.3,167.25,9.22576763]
[1730455670819,2.9913,167.29,167.25,12.21766763]
[1730455671925,46.89882702,167.3,167.26,2.9918]
[1730455672131,46.89882702,167.3,167.25,9.22576763]
[1730455672836,2.9915,167.29,167.25,9.22576763]
[1730455673022,46.89882702,167.3,167.25,9.22576763]
[1730455673730,2.9915,167.28,167.25,9.22576763]
[1730455674832,2.9925,167.23,167.2,9.22576763]
[1730455675026,9.22576763,167.26,167.2,9.22576763]
[1730455675931,9.22576763,167.27,167.22,9.22576763]
[1730455676828,2.9921,167.25,167.22,9.22576763]
[1730455678225,2.9919,167.26,167.23,2.9924]
[1730455678524,11.96576763,167.28,167.22,9.22576763]
[1730455678725,11.96576763,167.28,167.24,9.22576763]
[1730455679023,9.22576763,167.28,167.24,9.22576763]
[1730455679223,2.9917,167.27,167.24,12.21796763]
[1730455679423,2.9917,167.27,167.24,9.22576763]
[1730455679630,9.22576763,167.26,167.21,9.22576763]
[1730455679831,9.22576763,167.25,167.19,9.22576763]
[1730455680638,2.9925,167.23,167.19,12.21876763]
[1730455680839,9.22576763,167.25,167.19,12.21876763]
[1730455681529,2.9924,167.23,167.19,12.21876763]
[1730455683732,9.22576763,167.26,167.2,9.22576763]
[1730455683932,2.9921,167.25,167.21,2.9927]
[1730455684136,2.9921,167.25,167.22,9.22576763]
[1730455687630,2.9921,167.25,167.21,2.9927]
[1730455689544,12.21786763,167.25,167.21,2.9927]
[1730455700252,2.9921,167.25,167.21,2.9927]
[1730455705155,9.22576763,167.26,167.2,9.22576763]
[1730455705460,2.9921,167.25,167.2,9.22576763]
[1730455706358,2.9921,167.25,167.21,2.9927]
[1730455708567,9.22576763,167.26,167.22,2.9924]
[1730455708766,2.9918,167.27,167.22,9.22576763]
[1730455709564,2.9919,167.26,167.22,9.22576763]
[1730455709762,9.22576763,167.28,167.22,9.22576763]
[1730455710362,2.9917,167.27,167.23,2.9923]
[1730455711169,2.9917,167.27,167.22,9.22576763]
[1730455711350,2.9917,167.27,167.23,2.9923]
[1730455723880,2.9917,167.27,167.23,12.21806763]
[1730455724067,13.05186763,167.29,167.23,9.22576763]
[1730455724273,13.05186763,167.29,167.21,2.74]
[1730455724274,2.9916,167.28,167.24,9.22576763]
[1730455724776,11.77786763,167.29,167.24,9.22576763]
[1730455724969,14.76926763,167.29,167.25,2.992]
[1730455725170,12.21716763,167.29,167.25,2.992]
[1730455725572,9.22576763,167.31,167.26,9.22576763]
[1730455726484,9.22576763,167.29,167.24,9.22576763]
[1730455727976,12.21706763,167.29,167.25,2.992]
[1730455728287,2.9913,167.29,167.25,12.21776763]
[1730455729491,11.80586763,167.3,167.25,9.22576763]
[1730455729790,14.79706763,167.3,167.26,2.9918]
[1730455730574,9.22576763,167.3,167.25,2.68]
[1730455730777,9.22576763,167.32,167.27,12.21746763]
[1730455731476,2.9911,167.31,167.28,2.9915]
[1730455731785,9.22576763,167.32,167.28,2.9915]
[1730455732082,12.21666763,167.32,167.28,2.9915]
[1730455732285,9.22576763,167.32,167.28,2.9915]
[1730455732792,9.22576763,167.31,167.27,9.22576763]
[1730455733493,2.9912,167.3,167.27,9.22576763]
[1730455734687,2.9912,167.3,167.27,12.21746763]
[1730455738203,2.9912,167.3,167.27,9.22576763]
[1730455739402,9.22576763,167.32,167.27,9.22576763]
[1730455739592,2.991,167.31,167.27,12.21726763]
[1730455740392,2.991,167.31,167.28,2.9915]
[1730455740602,12.21656763,167.32,167.28,2.9915]
[1730455741390,12.21656763,167.32,167.29,2.9913]
[1730455741594,9.22576763,167.33,167.28,9.22576763]
[1730455741792,2.9905,167.34,167.3,9.22576763]
[1730455742496,2.9905,167.34,167.3,12.21686763]
[1730455743099,12.21606763,167.35,167.31,2.9909]
[1730455743993,9.22576763,167.35,167.31,2.9909]
[1730455744200,9.22576763,167.35,167.3,9.22576763]
[1730455745897,9.22576763,167.33,167.29,11.90576763]
[1730455746092,9.22576763,167.33,167.29,2.68]
[1730455746295,2.5527,167.36,167.26,11.88576763]
[1730455746296,9.22576763,167.31,167.26,11.88576763]
[1730455746600,2.5527,167.36,167.24,11.88576763]
[1730455746601,9.22576763,167.29,167.24,11.88576763]
[1730455747106,2.9918,167.27,167.24,11.88576763]
[1730455747397,2.9918,167.27,167.24,9.22576763]
[1730455748104,2.9915,167.28,167.24,9.22576763]
[1730455748592,2.9915,167.28,167.25,9.22576763]
[1730455748800,9.22576763,167.29,167.25,9.22576763]
[1730455749001,12.21716763,167.29,167.25,9.22576763]
[1730455750104,9.22576763,167.29,167.25,9.22576763]
[1730455750301,2.9915,167.28,167.25,9.22576763]
[1730455750497,9.22576763,167.29,167.23,12.21816763]
[1730455750812,9.22576763,167.28,167.23,12.21816763]
[1730455751297,2.9917,167.27,167.23,12.21816763]
[1730455751496,9.22576763,167.29,167.23,9.22576763]
[1730455751808,9.22576763,167.29,167.24,2.9922]
[1730455752409,2.9916,167.28,167.24,2.9922]
[1730455753109,2.9916,167.28,167.23,9.22576763]
[1730455753305,2.9916,167.28,167.25,9.22576763]
[1730455754505,2.9913,167.3,167.26,9.22576763]
[1730455754807,9.22576763,167.29,167.24,12.21796763]
[1730455755005,9.22576763,167.29,167.24,9.22576763]
[1730455755408,9.22576763,167.29,167.25,2.992]
[1730455755800,12.21706763,167.29,167.25,2.992]
[1730455757313,2.9913,167.3,167.26,12.21756763]
[1730455757502,9.22576763,167.32,167.26,9.22576763]
[1730455757703,9.22576763,167.32,167.26,11.88576763]
[1730455758400,2.9911,167.31,167.27,2.9915]
[1730455758601,12.21686763,167.31,167.27,2.9915]
[1730455762721,2.9911,167.31,167.27,12.21726763]
[1730455763821,2.9913,167.3,167.26,14.87756763]
[1730455765416,2.9908,167.32,167.28,2.9915]
[1730455765625,2.9908,167.32,167.27,9.22576763]
[1730455765926,2.991,167.31,167.27,12.21736763]
[1730455769418,9.22576763,167.33,167.27,9.22576763]
[1730455769619,9.22576763,167.34,167.29,9.22576763]
[1730455770412,9.22576763,167.34,167.29,12.21696763]
[1730455771316,2.9906,167.33,167.29,12.21696763]
[1730455776319,9.22576763,167.33,167.29,9.22576763]
[1730455776525,9.22576763,167.33,167.28,9.22576763]
[1730455776909,9.22576763,167.33,167.29,9.22576763]
[1730455777313,11.77846763,167.36,167.3,9.22576763]
[1730455777514,2.9906,167.34,167.31,2.991]
[1730455777729,2.9906,167.34,167.31,12.21676763]
[1730455778620,11.77846763,167.36,167.31,12.21676763]
[1730455778827,2.9903,167.35,167.31,12.21676763]
[1730455779513,9.22576763,167.36,167.31,9.22576763]
[1730455779709,9.22576763,167.36,167.29,12.21696763]
[1730455781227,2.9907,167.33,167.29,12.21696763]
[1730455786631,2.9905,167.34,167.31,9.22576763]
[1730455788134,2.9906,167.33,167.3,12.21686763]
[1730455790425,9.22576763,167.36,167.3,12.21686763]
[1730455790631,2.9905,167.34,167.3,12.21686763]
[1730455792422,12.21596763,167.36,167.32,2.9907]
[1730455792737,9.22576763,167.36,167.31,9.22576763]
[1730455793824,2.9905,167.34,167.31,12.21666763]
[1730455794319,2.9905,167.34,167.31,9.22576763]
[1730455794522,2.9903,167.35,167.31,9.22576763]
[1730455794733,9.22576763,167.36,167.31,9.22576763]
[1730455796824,2.9906,167.34,167.31,12.21666763]
[1730455798637,2.9906,167.34,167.31,9.22576763]
[1730455799522,2.9903,167.35,167.31,9.22576763]
[1730455799738,9.22576763,167.36,167.31,9.22576763]
[1730455801324,2.9906,167.34,167.31,9.22576763]
[1730455804040,2.9907,167.33,167.3,9.22576763]
[1730455804439,9.22576763,167.36,167.3,9.22576763]
[1730455804642,2.9907,167.33,167.3,9.22576763]
[1730455806035,2.9911,167.31,167.28,9.22576763]
[1730455806732,9.22576763,167.32,167.28,9.22576763]
[1730455806733,2.9912,167.3,167.28,9.22576763]
[1730455807338,9.22576763,167.32,167.27,9.22576763]
[1730455807537,9.22576763,167.29,167.25,60.46303734]